[Event "FIDE World Championship 2023"]
[Site "Astana"]
[Date "2023.04.29"]
[Round "14.1"]
[White "Ding, Liren"]
[Black "Nepomniachtchi, Ian"]
[Result "1/2-1/2"]
[ECO "E46"]
[WhiteElo "2788"]
[BlackElo "2795"]
[Annotator "TA"]
[PlyCount "180"]
[EventDate "2023.04.09"]
[EventType "match"]
[EventCountry "KAZ"]
[SourceTitle "playchess.com"]
[Source "ChessBase"]
[SourceQuality "1"]
[TimeControl "40/7200:20/3600:900+30"]

{[%evp 23,180,-22,-14,-60,-62,-66,-40,-66,0,0,-3,-22,-29,-15,-6,-61,-56,-57,-54,-66,-76,-79,-52,-59,-52,-48,-48,-50,-48,-65,-58,-58,-29,-34,-22,-51,-58,-137,-119,-129,-129,-128,-119,-110,-83,-136,-121,-129,-126,-120,-55,-55,-47,-47,-47,-47,-47,-47,-47,-47,-47,-47,-47,-47,-47,-47,-47,-47,-47,-57,-47,-57,-15,-64,-64,-62,-64,-93,-94,-131,-64,-64,-57,-140,-140,-140,-140,-157,-158,-158,-64,-64,0,-64,0,-71,-71,-86,-70,-73,-74,-80,0,0,0,0,0,0,0,0,0,0,0,0,0,0,0,0,0,0,0,0,0,0,0,0,0,0,0,0,0,0,0,0,0,-18,-24,-79,-79,-80,0,0,0,0,0,0,0,0,0,0,0,0,0,0,0,0,0,-8,-8]} 1. d4 {[%emt 0:00:08]} Nf6 {[%emt 0:00:06]} 2. c4 {[%emt 0:00:04]} e6 {[%emt 0:00:05]} 3. Nc3 {[%emt 0:00:13]} Bb4 {[%emt 0:00:13]} 4. e3 {[%emt 0:00:05]} O-O {[%emt 0:00:20]} 5. Bd2 {[%emt 0:00:04]} d5 {[%emt 0:01:04]} 6. a3 {[%emt 0:00:51]} Be7 {[%emt 0:02:51]} 7. Nf3 {[%emt 0:00:38]} c5 {[%emt 0:00:26]} 8. dxc5 {[%emt 0:03:10]} Bxc5 {[%emt 0:00:29]} 9. Qc2 {[%emt 0:13:05]} dxc4 {[%emt 0:00:29]} 10. Bxc4 {[%emt 0:01:44]} Nbd7 {[%emt 0:00:33]} 11. Rd1 {[%emt 0:06:59]} Be7 {[%emt 0:03:30]} 12. Ng5 {[%emt 0:05:00]} h6 {[%emt 0:10:17]} 13. h4 {[%emt 0:08:21]} (13. Nge4 $11) 13... Qc7 $1 $15 {[%emt 0:08:18]} (13... hxg5 $2 14. hxg5 Qb6 15. gxf6 Nxf6 16. e4 $18 (16. Ne4 Nxe4 17. Qxe4 f5 $16)) 14. Be2 {[%emt 0:21:52]} Rd8 {[%emt 0:09:48]} (14... hxg5 15. hxg5 g6 16. gxf6 Bxf6 17. Qe4 $16) (14... b6 $5) 15. Rc1 {[%emt 0:01:01]} Nf8 {[%emt 0:08:50]} (15... hxg5 16. hxg5 Qc5 17. gxf6 Nxf6 18. Bf3 $14) (15... Qb8 $1 $15) 16. Nge4 {[%emt 0:03:48]} Nxe4 {[%emt 0:00:24]} 17. Nxe4 {[%emt 0:06:45]} (17. Qxe4 {is more complex.} Qd6 18. Nb1 Bf6 19. Bb4) 17... Qxc2 {[%emt 0:00:27]} 18. Rxc2 {[%emt 0:00:01]} Bd7 {[%emt 0:00:09]} 19. Bb4 {[%emt 0:04:50]} (19. Rc7 $11) 19... Bxb4+ $15 {[%emt 0:01:12]} 20. axb4 {[%emt 0:00:02]} Bc6 {[%emt 0:03:09]} 21. Nc5 {[%emt 0:00:22]} Bxg2 {[%emt 0:08:50]} 22. Rg1 {[%emt 0:00:18]} Bd5 {[%emt 0:00:12]} 23. e4 {[%emt 0:00:21]} Bc6 {[%emt 0:01:48]} 24. b5 {[%emt 0:00:04]} Be8 $1 {[%emt 0:12:52]} 25. Nxb7 {[%emt 0:00:22]} Rd4 {[%emt 0:06:35]} 26. Rc4 {[%emt 0:00:06]} Rd7 $1 {[%emt 0:00:52]} 27. Nc5 {[%emt 0:04:56]} Rc7 {[%emt 0:02:16]} 28. Rc3 {[%emt 0:00:04]} Rac8 {[%emt 0:03:02]} 29. b4 {[%emt 0:05:00]} Nd7 {[%emt 0:01:36]} 30. Rcg3 {[%emt 0:02:32]} (30. Kd2 $15) 30... Nxc5 $17 {[%emt 0:02:36]} 31. bxc5 {[%emt 0:00:15]} Rxc5 {[%emt 0:00:05]} 32. Rxg7+ {[%emt 0:00:03]} Kf8 {[%emt 0:00:01]} 33. Bd3 {[%emt 0:05:04]} Rd8 {[%emt 0:04:21]} 34. Ke2 {[%emt 0:01:36]} (34. Kd2 $142) 34... Rc3 $1 $17 {[%emt 0:00:18]} 35. Rg8+ {[%emt 0:06:08]} Ke7 {[%emt 0:00:29]} 36. R1g3 {[%emt 0:00:30]} e5 {[%emt 0:01:45]} (36... Rb3 $17 {Strongly threatening ...Rd4.} 37. Kd2 Rd4) 37. Rh8 $15 {[%emt 0:03:44]} Rd6 $1 {[%emt 0:06:22]} 38. b6 {[%emt 0:06:33]} Rxb6 {[%emt 0:00:32]} 39. Rxe8+ $1 {[%emt 0:00:04]} Kxe8 {[%emt 0:00:04]} 40. Bb5+ $1 {[%emt 0:00:00]} Rxb5 {[%emt 0:00:00]} 41. Rxc3 {[%emt 0:00:03]} Kd7 {[%emt 0:01:06]} 42. Rf3 {[%emt 0:03:15]} Ke7 {[%emt 0:04:15]} 43. Rc3 $1 {[%emt 0:00:34]} a5 {[%emt 0:07:26]} 44. Rc7+ {[%emt 0:03:38]} Kf6 {[%emt 0:00:44]} 45. Rc6+ {[%emt 0:00:14]} Kg7 {[%emt 0:00:05]} 46. Ra6 {[%emt 0:00:03]} Rb2+ {[%emt 0:01:28]} 47. Kf3 {[%emt 0:04:15]} Ra2 {[%emt 0:00:25]} 48. Kg3 {[%emt 0:08:21]} (48. Ra7 $1 $11) 48... h5 $1 $15 {[%emt 0:02:22]} 49. Ra8 {[%emt 0:01:14]} Ra1 {[%emt 0:01:56]} 50. Kg2 {[%emt 0:22:36]} a4 {[%emt 0:02:11]} 51. Ra5 {[%emt 0:00:03]} f6 {[%emt 0:00:29]} (51... Kf6 $1 $17 {...a3 is the strong threat.} 52. Ra6+ Kg7) 52. Kf3 {[%emt 0:05:55]} a3 {[%emt 0:01:13]} 53. Ra6 {[%emt 0:00:07]} (53. Ra4 $15 Kf7 54. Ke2) 53... Kf7 $1 $17 {[%emt 0:00:33]} 54. Ke3 {[%emt 0:03:09]} Ke8 $1 {[%emt 0:01:42]} 55. Ke2 {[%emt 0:02:08]} Ke7 $1 {[%emt 0:01:47]} 56. Kf3 {[%emt 0:01:11]} Ra2 {[%emt 0:02:27]} (56... Kd8 $17 {Threatens to win with ...Kc7.} 57. Rxf6 Kc7) 57. Ke3 $15 {[%emt 0:00:36]} Ra1 {[%emt 0:14:45]} (57... Kf7 $15 58. Ra7+ Ke8) 58. Ke2 {[%emt 0:00:04]} ({White should try} 58. Kf3 $1 $11 a2 59. Ke2) 58... Kf7 {[%emt 0:01:04]} (58... a2 $15 59. Kf3 Kd8 60. Ra8+ Kc7) 59. Kf3 {[%emt 0:00:26]} (59. Ke3 $1 $11 a2 60. Ke2) 59... Ra2 {[%emt 0:00:19]} 60. Ke3 {[%emt 0:00:00]} Ke7 {[%emt 0:00:00]} 61. Kf3 $1 {[%emt 0:02:37] [#]} Kd7 $1 {[%emt 0:01:06]} 62. Rxf6 {[%emt 0:00:37] [#]} Rb2 {[%emt 0:00:10]} (62... Ra1 $1 $17 63. Ra6 Kc7) 63. Ra6 $11 {[%emt 0:00:50]} Rb3+ {[%emt 0:00:19]} 64. Kg2 $1 {[%emt 0:04:01]} Kc7 {[%emt 0:01:04]} 65. f4 $1 {[%emt 0:00:11]} exf4 {[%emt 0:05:37]} 66. e5 $1 {[%emt 0:00:05]} Kb7 {[%emt 0:01:27]} 67. Ra4 {[%emt 0:01:21]} Kc6 {[%emt 0:00:28]} 68. Ra6+ {[%emt 0:10:08]} Kb5 {[%emt 0:04:22]} 69. Ra7 {[%emt 0:00:02]} Kb6 {[%emt 0:00:21]} 70. Ra8 {[%emt 0:00:05]} Kc5 {[%emt 0:00:18]} 71. Ra6 {[%emt 0:01:24]} Kb5 {[%emt 0:15:24]} 72. Ra7 {[%emt 0:00:05]} Kb6 {[%emt 0:00:17]} 73. Ra8 {[%emt 0:00:05]} Kc6 {[%emt 0:00:25]} 74. Ra6+ {[%emt 0:00:28]} Kd7 {[%emt 0:00:06]} 75. Kf2 {[%emt 0:00:33]} Ke7 {[%emt 0:00:23]} 76. Kg2 $1 {[%emt 0:00:04]} Re3 {[%emt 0:00:45]} 77. Kf2 {[%emt 0:00:05]} Rg3 {[%emt 0:00:03]} (77... Rxe5 78. Kf3) 78. Kf1 $1 {[%emt 0:00:23]} Rc3 {[%emt 0:01:59]} 79. Kf2 {[%emt 0:00:07]} Re3 {[%emt 0:00:52]} 80. Kg2 {[%emt 0:00:16]} Kd7 {[%emt 0:03:19]} ({Much worse is} 80... Rxe5 81. Rxa3 Kf7 82. Kf3 $11) 81. Kf2 {[%emt 0:00:04]} Kc7 {[%emt 0:00:11]} ({Don't play} 81... Rxe5 82. Rxa3 Rf5 83. Ra7+ Kc6 84. Kf3 $11) (81... Rb3 $17 82. Rd6+ Ke7) 82. e6 $11 {[%emt 0:00:28]} Kd8 {[%emt 0:01:14]} 83. Ra7 {[%emt 0:00:05]} Ke8 {[%emt 0:00:35]} 84. Kg2 {[%emt 0:00:03]} Rxe6 {[%emt 0:00:22]} 85. Rxa3 {[%emt 0:00:04]} Rg6+ {[%emt 0:00:03]} 86. Kf2 {[%emt 0:00:06]} Rg4 {[%emt 0:00:04]} 87. Ra5 $1 {[%emt 0:00:21]} Rxh4 {[%emt 0:00:05]} 88. Kf3 {[%emt 0:00:04]} Ke7 {[%emt 0:00:05]} 89. Rf5 {[%emt 0:00:06]} Ke6 {[%emt 0:00:02]} 90. Rxf4 {[%emt 0:00:04]} Rxf4+ {[%emt 0:00:03]} 1/2-1/2

[Event "FIDE World Championship 2023"]
[Site "Astana"]
[Date "2023.04.30"]
[Round "15.1"]
[White "Ding, Liren"]
[Black "Nepomniachtchi, Ian"]
[Result "1/2-1/2"]
[ECO "D02"]
[WhiteElo "2788"]
[BlackElo "2795"]
[Annotator "TA"]
[PlyCount "69"]
[EventDate "2023.04.09"]
[EventType "match"]
[EventCountry "KAZ"]
[SourceTitle "playchess.com"]
[Source "ChessBase"]
[SourceQuality "1"]
[TimeControl "1500+10"]

{[%evp 9,69,4,-2,-4,-8,3,14,7,8,-12,0,-14,7,0,39,25,31,19,31,31,22,30,28,39,41,26,28,11,38,38,59,30,44,30,110,112,95,-25,-24,-18,-18,-22,-22,-27,-7,-7,11,11,14,0,0,0,0,0,0,0,0,0,0,0,0,0]} 1. d4 {[%emt 0:00:03]} Nf6 {[%emt 0:00:01]} 2. Nf3 {[%emt 0:00:02]} d5 {[%emt 0:00:02]} 3. c3 {[%emt 0:00:01]} c5 {[%emt 0:00:02]} 4. dxc5 {[%emt 0:00:02]} e6 {[%emt 0:00:04]} 5. Be3 {[%emt 0:00:02]} Be7 {[%emt 0:00:28]} 6. g3 {[%emt 0:00:04] D02: 1 d4 d5 2 Nf3 sidelines, including 2...Nf6 3 g3 and 2...Nf6 3 Bf4.} Nc6 {[%emt 0:00:40]} 7. Bg2 {[%emt 0:00:37]} O-O {[%emt 0:00:21]} 8. b4 {[%emt 0:00:29]} Ng4 {[%emt 0:00:14]} 9. Bd4 {[%emt 0:00:26] [#]} Qc7 $146 {[%emt 0:00:52]} (9... b6 $5) ({Predecessor:} 9... b6 10. h3 Nf6 11. Nbd2 bxc5 12. bxc5 Qc7 13. O-O e5 14. Be3 Na5 15. Qa4 Bd7 {½-½ Dehaybe,A (1867)-Sorcinelli,A (2056) LSS RA-2010-0-00080}) 10. O-O {[%emt 0:00:25]} e5 {[%emt 0:01:27]} 11. h3 {[%emt 0:00:02]} exd4 {[%emt 0:01:39]} 12. hxg4 {[%emt 0:00:02]} dxc3 {[%emt 0:00:02]} 13. Nxc3 {[%emt 0:00:30]} Nxb4 {[%emt 0:00:05]} (13... Bxg4 $2 14. Nxd5 (14. Qxd5 Nxb4 15. Qe4 Bxf3 $11) 14... Qd7 15. b5 $18) 14. a3 {[%emt 0:00:20]} Bf6 {[%emt 0:01:14]} (14... Qxc5 $2 15. Na4 (15. axb4 Qxc3 16. Qxd5 Rd8 $17) 15... Qd6 16. axb4 $18) 15. Rc1 {[%emt 0:00:57]} (15. Nxd5 Nxd5 16. Qxd5 Bxa1 17. Rxa1 Bxg4 $17) 15... Bxc3 {[%emt 0:00:38]} 16. Rxc3 {[%emt 0:00:03]} Nc6 {[%emt 0:00:01]} 17. Qxd5 {[%emt 0:05:56]} Bxg4 {[%emt 0:00:05]} 18. Ng5 {[%emt 0:02:04][%cal Bf3g5,Bg5e4,Be4d6][%mdl 32] [#] Hoping for Qe4.} (18. Qe4 $5 {[%cal Re4g4]} h5 19. e3 $11 (19. Ng5 g6 $11)) 18... h6 {[%emt 0:04:05]} 19. Ne4 {[%emt 0:01:34]} Rae8 {[%emt 0:00:07]} 20. e3 {[%emt 0:00:41]} Re5 {[%emt 0:00:02]} 21. Qd2 {[%emt 0:00:39]} Rd8 {[%emt 0:01:45]} (21... Bh3 $11 {keeps the balance.} 22. Nf6+ gxf6 23. Bxh3 Rd8) 22. Nd6 $16 {[%emt 0:00:22]} Rh5 {[%emt 0:01:18]} 23. Rb1 {[%emt 0:02:20] White is more active.} (23. Qc2 $16) 23... Ne5 $11 {[%emt 0:00:23] ( -> ...Nf3+)} 24. e4 {[%emt 0:00:08] Qd4 is the strong threat.} (24. Rxb7 $2 Nf3+ 25. Kf1 Nxd2+ $19) (24. Bxb7 Qxb7) 24... b6 $36 {[%emt 0:00:57][%mdl 2048] Black is pushing.} 25. cxb6 {[%emt 0:03:35]} axb6 {[%emt 0:00:01]} 26. Nb5 {[%emt 0:02:19]} (26. Rxc7 $2 Nf3+ 27. Kf1 (27. Bxf3 $2 Bxf3) 27... Nxd2+ 28. Kg1 Nxb1 $19) 26... Rxd2 {[%emt 0:03:51]} 27. Nxc7 {[%emt 0:00:01] The position is equal.} Bh3 {[%emt 0:01:49]} 28. Bxh3 {[%emt 0:00:26]} Rxh3 {[%emt 0:00:02]} 29. Kg2 {[%emt 0:02:26]} Rh5 {[%emt 0:00:16]} 30. Rb5 $1 {[%emt 0:00:07]} Rd1 {[%emt 0:01:10]} 31. Nd5 {[%emt 0:00:16] aiming for Nf4.} (31. Rxb6 $2 {perishes.} Rdh1 32. g4 (32. Rb8+ $2 Kh7 $19) 32... R5h2+ 33. Kg3 Rh3+ 34. Kg2 R1h2+ 35. Kg1 Rxc3 $19) (31. f4 $5 Rd2+ $8 32. Kg1 $11) 31... Rdh1 $1 {[%emt 0:00:39][%csl Gh1][%cal Rh5h2]} 32. Ne7+ {[%emt 0:00:07]} (32. Rxb6 $2 R5h2#) ({But not} 32. Rc8+ $2 Kh7 $19) 32... Kh7 {[%emt 0:00:01][%csl Gh1][%cal Rh5h2]} 33. Rxe5 $1 {[%emt 0:00:06][%mdl 64] [#] Deflection} R1h2+ {[%emt 0:00:01]} 34. Kg1 {[%emt 0:00:01]} Rh1+ {[%emt 0:00:01]} 35. Kg2 {[%emt 0:00:01] Weighted Error Value: White=0.10 (very precise) /Black=0.09 (flawless)} 1/2-1/2

[Event "FIDE World Championship 2023"]
[Site "Astana"]
[Date "2023.04.30"]
[Round "15.2"]
[White "Nepomniachtchi, Ian"]
[Black "Ding, Liren"]
[Result "1/2-1/2"]
[ECO "C84"]
[WhiteElo "2795"]
[BlackElo "2788"]
[Annotator "TA"]
[PlyCount "94"]
[EventDate "2023.04.09"]
[EventType "match"]
[EventCountry "KAZ"]
[SourceTitle "playchess.com"]
[Source "ChessBase"]
[SourceQuality "1"]
[TimeControl "1500+10"]

{[%evp 15,94,17,15,13,19,0,0,-3,16,-2,11,3,43,55,55,51,67,67,60,46,83,79,97,52,52,63,107,53,55,59,53,22,47,42,43,50,51,48,50,2,2,9,5,4,6,0,0,2,4,0,0,0,0,0,2,0,0,0,0,0,0,0,0,0,2,2,2,2,17,0,0,0,0,0,0,0,0,0,2,0,1]} 1. e4 {[%emt 0:00:02]} e5 {[%emt 0:00:01]} 2. Nf3 {[%emt 0:00:02]} Nc6 {[%emt 0:00:01]} 3. Bb5 {[%emt 0:00:01][%cal Bf1b5,Bb5a4,Ba4b3,Bb3a2,Ba2c4][%mdl 32]} a6 {[%emt 0:00:01]} 4. Ba4 {[%emt 0:00:01]} Nf6 {[%emt 0:00:02]} 5. O-O {[%emt 0:00:03]} Be7 {[%emt 0:00:01]} 6. d3 {[%emt 0:00:04]} b5 {[%emt 0:00:01]} 7. Bb3 {[%emt 0:00:02]} d6 {[%emt 0:00:02]} 8. a4 {[%emt 0:00:02]} (8. a3 O-O 9. Nc3 Na5 10. Ba2 Be6 11. b4 Nc6 12. Bg5 Bxa2 13. Rxa2 Qd7 14. Bxf6 Bxf6 15. Nd5 a5 16. Rb2 axb4 17. axb4 Bd8 18. c4 Nd4 19. Nxd4 exd4 {½-½ Nepomniachtchi,I (2773)-Ding,L (2799) Airthings Masters Prelim rapid 2022 (14)}) 8... Bd7 {[%emt 0:26:21] 8...Bd7 is better than 8...b4.} 9. h3 {[%emt 0:00:05] C84: Closed Ruy Lopez: Unusual White 6th moves.} O-O {[%emt 0:00:00]} 10. Be3 {[%emt 0:00:06]} Na5 {[%emt 0:00:00]} 11. Ba2 {[%emt 0:00:02]} bxa4 {[%emt 0:00:00]} 12. Bd2 {[%emt 0:00:12] [#]} Nc6 $146 {[%emt 0:00:00]} ({Predecessor:} 12... c5 13. Bxa5 Qxa5 14. Nc3 Qb6 15. Qd2 Bb5 16. Rfb1 Qb7 17. Qe2 g6 18. Bc4 Kg7 {½-½ Silin,V (2351)-Biedermann,T (2430) RCCA Emerald email 2013}) 13. Nc3 {[%emt 0:00:49]} Rb8 {[%emt 0:00:00]} 14. Nxa4 {[%emt 0:02:32]} Nd4 {[%emt 0:00:00]} 15. Bc4 {[%emt 0:01:04]} c6 {[%emt 0:00:00]} 16. Nxd4 {[%emt 0:03:34]} exd4 {[%emt 0:00:00]} 17. Bf4 {[%emt 0:00:01]} ({But not} 17. Bxa6 d5 18. b4 (18. e5 Ne8 $15) 18... Bxb4 $11) 17... Be6 {[%emt 0:00:00][%cal Of6e4]} 18. Re1 {[%emt 0:01:48]} a5 {[%emt 0:00:00]} 19. Qf3 {[%emt 0:02:04]} Rb7 {[%emt 0:00:00]} 20. e5 {[%emt 0:01:25]} Nd5 {[%emt 0:00:00][%cal Bf6d5,Bd5f4,Bf4d3][%mdl 32] [#]} 21. exd6 {[%emt 0:01:09]} (21. Bg3 $1 $16) 21... Bxd6 $14 {[%emt 0:00:00]} 22. Bxd6 {[%emt 0:00:38]} Qxd6 {[%emt 0:00:00]} 23. Qe4 {[%emt 0:00:09]} Nf4 {[%emt 0:00:00]} 24. Qe5 {[%emt 0:01:17]} Qxe5 {[%emt 0:00:00]} 25. Rxe5 {[%emt 0:00:01]} Bxc4 {[%emt 0:00:00]} 26. dxc4 {[%emt 0:00:01]} Rb4 {[%emt 0:00:00]} 27. Rc5 {[%emt 0:01:03]} (27. g3 $14 {feels stronger.} Ng6 28. Rc5 (28. Rxa5 Rxc4 29. Rc5 Rxc5 $14)) 27... d3 $11 {[%emt 0:00:00] The position is equal.} 28. cxd3 {[%emt 0:03:02]} Nxd3 {[%emt 0:00:00] [#] Strongly threatening ...Rxa4.} 29. Rxc6 {[%emt 0:00:50]} Ne5 {[%emt 0:00:00]} 30. Rc7 {[%emt 0:00:39]} Nxc4 {[%emt 0:00:00]} 31. Nc5 {[%emt 0:00:31] And now Nd3 would win.} Nxb2 {[%emt 0:00:00]} (31... Rxb2 $2 32. Nd7 Rb4 33. Nxf8 Kxf8 34. Rc1 $18) 32. Nd7 {[%emt 0:00:11]} Re8 {[%emt 0:00:00]} 33. Rxa5 {[%emt 0:00:18]} Nd3 {[%emt 0:00:00]} 34. Rg5 {[%emt 0:01:17] Black must now prevent Nf6+.} Rf4 {[%emt 0:00:00] Inhibits Nf6+.} 35. f3 {[%emt 0:00:58]} h6 {[%emt 0:00:00]} 36. Rd5 {[%emt 0:00:12]} Nb4 {[%emt 0:00:00]} 37. Rd6 {[%emt 0:00:20]} Rf5 {[%emt 0:00:13]} 38. Rb7 {[%emt 0:01:03]} Rd5 {[%emt 0:00:39]} 39. Rdb6 {[%emt 0:00:03]} Rd8 {[%emt 0:00:19]} 40. Nf6+ {[%emt 0:01:17]} gxf6 {[%emt 0:00:01]} 41. Rxb4 {[%emt 0:00:01]} Rd4 {[%emt 0:00:03]} 42. Rxd4 {[%emt 0:00:21]} Rxd4 {[%emt 0:00:01] KR-KR} 43. Kh2 {[%emt 0:00:01]} Kg7 {[%emt 0:00:02]} 44. Rb2 {[%emt 0:00:02]} Rd5 {[%emt 0:00:02]} 45. Ra2 {[%emt 0:00:01]} Rd4 {[%emt 0:00:02]} 46. Rb2 {[%emt 0:00:00]} Rd5 {[%emt 0:00:01]} 47. Ra2 {[%emt 0:00:01]} Rd4 {[%emt 0:00:02] Weighted Error Value: White=0.08 (flawless) /Black=0.08 (flawless)} 1/2-1/2

[Event "FIDE World Championship 2023"]
[Site "Astana"]
[Date "2023.04.30"]
[Round "15.3"]
[White "Ding, Liren"]
[Black "Nepomniachtchi, Ian"]
[Result "1/2-1/2"]
[ECO "A14"]
[WhiteElo "2788"]
[BlackElo "2795"]
[Annotator "TA"]
[PlyCount "65"]
[EventDate "2023.04.09"]
[EventType "match"]
[EventCountry "KAZ"]
[SourceTitle "playchess.com"]
[Source "ChessBase"]
[SourceQuality "1"]
[TimeControl "1500+10"]

{[%evp 20,65,25,6,22,18,15,29,13,16,21,6,14,11,11,9,36,29,36,37,36,41,40,41,41,36,36,29,29,29,29,29,29,29,29,29,29,29,29,29,29,21,20,0,29,0,28,0]} 1. Nf3 {[%emt 0:00:05]} d5 {[%emt 0:00:05]} 2. g3 {[%emt 0:00:02]} Nf6 {[%emt 0:00:03]} 3. Bg2 {[%emt 0:00:02]} e6 {[%emt 0:00:02]} 4. O-O {[%emt 0:00:02]} Be7 {[%emt 0:00:02]} 5. c4 {[%emt 0:00:03]} O-O {[%emt 0:00:03]} 6. b3 {[%emt 0:00:01]} c5 {[%emt 0:00:11]} 7. cxd5 {[%emt 0:00:05]} Nxd5 {[%emt 0:00:06]} 8. Bb2 {[%emt 0:00:09]} Nc6 {[%emt 0:00:02]} 9. d4 {[%emt 0:00:05]} cxd4 {[%emt 0:00:07]} 10. Nxd4 {[%emt 0:00:02]} Nxd4 {[%emt 0:00:05]} 11. Qxd4 {[%emt 0:01:10][%csl Gb2][%cal Rd4g7]} Bf6 {[%emt 0:01:36] A14: English Opening: 1...e6 with b3 by White.} 12. Qd2 {[%emt 0:00:02]} Nf4 {[%emt 0:00:13]} 13. gxf4 {[%emt 0:02:13]} Qxd2 {[%emt 0:00:28][%mdl 64] [#] Remove Defender} 14. Nxd2 {[%emt 0:00:01][%cal Bb1d2,Bd2c4,Bc4e5][%mdl 32]} Bxb2 {[%emt 0:00:03]} 15. Rad1 {[%emt 0:00:02]} Bf6 {[%emt 0:01:13]} 16. Nc4 {[%emt 0:01:17]} Rb8 {[%emt 0:01:24] Black is weak on the light squares} 17. Ne5 {[%emt 0:00:04]} Rd8 {[%emt 0:03:09] [#]} 18. Rxd8+ $146 {[%emt 0:02:09]} ({Predecessor:} 18. e3 Kf8 19. Rxd8+ Bxd8 20. Rd1 Bf6 21. Rc1 Bxe5 22. fxe5 a5 23. Rc7 b6 24. Ra7 {½-½ Artemiev,V (2716)-Duda,J (2753) Pepe Cuenca Invitational 2020 (2.13)}) 18... Bxd8 {[%emt 0:00:28]} 19. Rd1 {[%emt 0:00:03][%cal Rd1d8] [#]} Be7 {[%emt 0:01:18]} 20. Nd7 {[%emt 0:01:53]} Bxd7 {[%emt 0:02:13]} 21. Rxd7 $14 {[%emt 0:00:25][%mdl 4096] Endgame KRB-KRB} Kf8 {[%emt 0:00:04]} 22. Bxb7 {[%emt 0:00:23]} Rd8 {[%emt 0:00:08]} 23. Rc7 {[%emt 0:00:09]} a5 {[%emt 0:00:32]} 24. Rc4 {[%emt 0:06:42]} Bb4 {[%emt 0:00:14]} 25. Rc2 {[%emt 0:03:21]} Rd2 {[%emt 0:00:09]} 26. Rxd2 {[%emt 0:00:01]} Bxd2 $11 {[%emt 0:00:01] KB-KB} 27. e3 {[%emt 0:00:01]} Bb4 {[%emt 0:00:32]} 28. Kf1 {[%emt 0:00:04]} Ke7 {[%emt 0:00:04]} 29. Ke2 {[%emt 0:00:01]} Kd6 {[%emt 0:00:31]} 30. Kd3 {[%emt 0:00:02]} Be1 {[%emt 0:00:24]} 31. Ke2 {[%emt 0:00:06]} Bb4 {[%emt 0:00:02]} 32. Kd3 {[%emt 0:00:01]} Be1 {[%emt 0:00:01]} 33. Ke2 {[%emt 0:00:01] Weighted Error Value: White=0.04 (flawless) /Black=0.02 (flawless)} 1/2-1/2